fUSD/lending_fUSD_20240428
["ID","MTS","AMOUNT","RATE_DAILY","PERIOD"]
[324794945,1714335091671,-1419.51,0.00012054,2]
[324794946,1714335091681,-321.367418,0.00012054,2]
[324794947,1714335091692,-151.0,0.00012054,2]
[324794948,1714335091701,-500.0,0.00012054,2]
[324794949,1714335091711,-550.705949,0.00012054,2]
[324794950,1714335091720,-318.996419,0.00012054,2]
[324794951,1714335091730,-500.0,0.00012054,2]
[324794952,1714335091739,-854.24,0.00012054,2]
[324794953,1714335091749,-1077.75,0.00012054,2]
[324794954,1714335091759,-321.367418,0.00012054,2]
[324794955,1714335091768,-151.0,0.00012054,2]
[324794956,1714335091778,-500.0,0.00012054,2]
[324794957,1714335091787,-318.996419,0.00012054,2]
[324794958,1714335091797,-2717.25,0.00012054,2]
[324794959,1714335091807,-530.39,0.00012054,2]
[324794960,1714335091816,-4094.38,0.00012054,2]
[324794961,1714335091826,-500.0,0.00012054,2]
[324794962,1714335091836,-579.048538,0.00012054,2]
[324794963,1714335091845,-947.74,0.00012054,2]
[324794964,1714335091855,-1974.12,0.00012054,2]
[324794965,1714335091865,-579.048538,0.00012054,2]
[324794966,1714335091875,-1503.79,0.00012054,2]
[324794967,1714335091884,-1354.91,0.00012054,2]
[324794968,1714335091893,-1990.76,0.00012054,2]
[324794969,1714335091903,-500.0,0.00012054,2]
[324794970,1714335091912,-2218.47,0.00012054,2]
[324794971,1714335091921,-500.0,0.00012054,2]
[324794972,1714335091931,-1792.37,0.00012054,2]
[324794973,1714335091940,-989.54,0.00012054,2]
[324794974,1714335091949,-1852.44,0.00012054,2]
[324794975,1714335091958,-500.0,0.00012054,2]
[324794976,1714335091967,-151.0,0.00012054,2]
[324794977,1714335091978,-2057.04,0.00012054,2]
[324794978,1714335091987,-511.72,0.00012054,2]
[324794979,1714335091996,-500.0,0.00012054,2]
[324794980,1714335092006,-500.0,0.00012054,2]
[324794981,1714335092015,-879.95,0.00012054,2]
[324794982,1714335092024,-6407.06,0.00012054,2]
[324794983,1714335092035,-664.66,0.00012054,2]
[324794984,1714335092045,-2262.97,0.00012054,2]
[324794985,1714335092054,-3147.07,0.00012054,2]
[324794986,1714335092063,-426.636916,0.00012054,2]
[324794987,1714335092073,-2302.016395,0.00012054,2]
[324794988,1714335092082,-1216.68,0.00012054,2]
[324794989,1714335092093,-500.0,0.00012054,2]
[324794990,1714335092104,-676.6,0.00012054,2]
[324794991,1714335092114,-500.0,0.00012054,2]
[324794992,1714335092123,-518.32,0.00012054,2]
[324794993,1714335092133,-220.022233,0.00012054,2]
[324794994,1714335092143,-426.636916,0.00012054,2]
[324794995,1714335092153,-1929.79,0.00012054,2]
[324794996,1714335092163,-2302.016395,0.00012054,2]
[324794997,1714335092172,-500.0,0.00012054,2]
[324794998,1714335092182,-500.0,0.00012054,2]
[324794999,1714335092193,-3019.82,0.00012054,2]
[324795000,1714335092203,-220.022233,0.00012054,2]
[324795001,1714335092214,-1079.35,0.00012054,2]
[324795002,1714335092223,-500.0,0.00012054,2]
[324795003,1714335092234,-3348.29,0.00012054,2]
[324795004,1714335092243,-604.29,0.00012054,2]
[324795005,1714335092252,-823.29,0.00012054,2]
[324795006,1714335092261,-500.0,0.00012054,2]
[324795007,1714335092271,-563.66,0.00012054,2]
[324795008,1714335092280,-1121.23,0.00012054,2]
[324795009,1714335092290,-587.85,0.00012054,2]
[324795010,1714335092299,-500.0,0.00012054,2]
[324795011,1714335092310,-5996.39511434,0.00012054,2]
[324795012,1714335092330,-642.72488566,0.00012054,2]
[324795013,1714335092340,-500.0,0.00012054,2]
[324795014,1714335092350,-500.0,0.00012054,2]
[324795015,1714335092360,-122.27511434,0.00012054,2]
[324795016,1714335092372,-377.72488566,0.00012054,2]
[324795017,1714335092384,-442.45260831,0.00012054,2]
[324795018,1714335092397,-419.6410628,0.00012054,2]
[324795019,1714335092409,-465.27632889,0.00012054,2]
[324795020,1714335092418,-53.66985437,0.00012054,2]
[324795021,1714335092431,-488.98014563,0.00012054,2]
[324795022,1714335092440,-163.27175437,0.00012054,2]
[324795023,1714335092455,-336.72824563,0.00012054,2]
[324795024,1714335092468,-764.49,0.00012054,2]
[324795025,1714335092479,-1829.171623,0.00012054,2]
[324795026,1714335092488,-124.96139528,0.00012054,2]
[324795027,1714335092501,-309.3964289,0.00012054,2]
[324795028,1714335092513,-436.63471156,0.00012054,2]
[324795029,1714335092528,-262.65011809,0.00012054,2]
[324795030,1714335092692,-115.77734617,0.00012054,2]
[324795031,1714335092716,-1122.94,0.00012054,2]
[324795032,1714335092727,-500.0,0.00012054,2]
[324795033,1714335092737,-202.22774947,0.00012054,2]
[324795034,1714335092750,-417.60225053,0.00012054,2]
[324795035,1714335092761,-2202.24,0.00012054,2]
[324795036,1714335092771,-823.96,0.00012054,2]
[324795037,1714335092781,-1829.171623,0.00012054,2]
[324795038,1714335092791,-500.0,0.00012054,2]
[324795039,1714335092800,-2196.19806116,0.00012054,2]
[324795040,1714335092813,-500.82193884,0.00012054,2]
[324795041,1714335092823,-2085.16,0.00012054,2]
[324795042,1714335092833,-500.0,0.00012054,2]
[324795043,1714335092843,-45.89278116,0.00012054,2]
[324795044,1714335092856,-486.28721884,0.00012054,2]
[324795045,1714335092866,-500.0,0.00012054,2]
[324795046,1714335092876,-500.0,0.00012054,2]
[324795047,1714335092885,-500.0,0.00012054,2]
[324795048,1714335092895,-466.79203634,0.00012054,2]
[324795049,1714335092908,-651.19754,0.00012054,2]
[324795050,1714335092920,-901.19631038,0.00012054,2]
[324795051,1714335092933,-476.03411328,0.00012054,2]
[324795052,1714335092943,-500.0,0.00012054,2]
[324795053,1714335092955,-567.0304729,0.00012054,2]
[324795054,1714335093103,-637.36,0.00011232,2]
[324795055,1714335093115,-1765.6295271,0.00012054,2]
[324795056,1714335093124,-500.0,0.00012054,2]
[324795057,1714335093135,-500.0,0.00012054,2]
[324795058,1714335093146,-1688.86,0.00012054,2]
[324795059,1714335093156,-500.0,0.00012054,2]
[324795060,1714335093166,-302.45782,0.00012054,2]
[324795061,1714335093175,-500.0,0.00012054,2]
[324795062,1714335093184,-500.0,0.00012054,2]
[324795063,1714335093194,-1499.38,0.00012054,2]
[324795064,1714335093203,-724.01,0.00012054,2]
[324795065,1714335093213,-192.01879153,0.00012054,2]
[324795066,1714335093222,-5656.14,0.00012054,2]
[324795067,1714335093233,-1974.07628808,0.00012054,2]
[324795068,1714335093245,-1341.81371192,0.00012054,2]
[324795069,1714335093256,-302.45782,0.00012054,2]
[324795070,1714335093267,-938.48,0.00012054,2]
[324795071,1714335093276,-500.0,0.00012054,2]
[324795072,1714335093286,-2106.68,0.00012054,2]
[324795073,1714335093296,-594.41,0.00012054,2]
[324795074,1714335093305,-607.53,0.00012054,2]
[324795075,1714335093315,-500.0,0.00012054,2]
[324795076,1714335093325,-931.18,0.00012054,2]
[324795077,1714335093334,-500.0,0.00012054,2]
[324795078,1714335093345,-500.0,0.00012054,2]
[324795079,1714335093354,-500.0,0.00012054,2]
[324795080,1714335093364,-500.0,0.00012054,2]
[324795081,1714335093374,-500.0,0.00012054,2]
[324795082,1714335093385,-500.0,0.00012054,2]
[324795083,1714335093398,-500.0,0.00012054,2]
[324795084,1714335093407,-1794.18774119,0.00012054,2]
[324795085,1714335093420,-318.02225881,0.00012054,2]
[324795086,1714335093431,-4585.17,0.00012054,2]
[324795087,1714335093441,-500.0,0.00012054,2]
[324795088,1714335093451,-765.05,0.00012054,2]
[324795089,1714335093461,-500.0,0.00012054,2]
[324795090,1714335093473,-151.0,0.00012054,2]
[324795091,1714335093483,-936.743565,0.00012054,2]
[324795092,1714335093493,-500.0,0.00012054,2]
[324795093,1714335093503,-500.0,0.00012054,2]
[324795094,1714335093512,-500.0,0.00012054,2]
[324795095,1714335093522,-499.90081967,0.00012054,2]
[324795096,1714335093534,-0.09918033,0.00012054,2]
[324795097,1714335093544,-500.0,0.00012054,2]
[324795098,1714335093554,-500.0,0.00012054,2]
[324795099,1714335093564,-936.743565,0.00012054,2]
[324795100,1714335093574,-476.08475468,0.00012054,2]
[324795101,1714335093586,-23.91524532,0.00012054,2]
[324795102,1714335093596,-259.83788188,0.00012054,2]
[324795103,1714335093608,-240.16211812,0.00012054,2]
[324795104,1714335093618,-2559.64,0.00012054,2]
[324795105,1714335093630,-500.0,0.00012054,2]
[324795106,1714335093640,-151.0,0.00012054,2]
[324795107,1714335093650,-500.0,0.00012054,2]
[324795108,1714335093660,-500.0,0.00012054,2]
[324795109,1714335093671,-392.81659109,0.00012054,2]
[324795110,1714335094189,-500.0,0.00010958,2]
[324795111,1714335094199,-92.34,0.00010958,2]
[324795112,1714335094267,-409.17721636,0.00010958,2]
[324795113,1714335094276,-500.0,0.00010958,2]
[324795114,1714335094286,-500.0,0.00010958,2]
[324795115,1714335094295,-491.27063332,0.00010958,2]
[324795116,1714335094308,-8.72936668,0.00010958,2]
[324795117,1714335094318,-295.21393316,0.00011232,2]
[324795118,1714335094330,-204.78606684,0.00011232,2]
[324795119,1714335094339,-500.0,0.00011232,2]
[324795120,1714335094349,-577.92571256,0.00011506,2]
[324795121,1714335094361,-59.43428744,0.00011506,2]
[324795122,1714335094370,-218.70096825,0.00011506,2]
[324795123,1714335094383,-281.29903175,0.00011506,2]
[324795124,1714335094396,-197.311814,0.00011506,2]
[324795125,1714335094408,-302.688186,0.00011506,2]
[324795126,1714335094418,-637.36,0.0001178,2]
[324795127,1714335094430,-158.4,0.0001178,2]
[324795128,1714335094440,-107.18340891,0.00012054,2]
[324795129,1714335094450,-637.36,0.00012054,2]
[324795130,1714335094459,-1501.52763309,0.00012096,2]
[324795131,1714335094472,-3140.13960754,0.00012096,2]
[324795132,1714335094483,-755.00039246,0.00012102,2]
[324795133,1714335094495,-324.1662772,0.00012102,2]
[324795134,1714335094508,-323.74392734,0.00012102,2]
[324795135,1714335094518,-365.581841,0.00012102,2]
[324795136,1714335094536,-1402.910597,0.00012102,2]
[324795137,1714335094549,-365.581841,0.00012102,2]
[324795138,1714335094560,-221.722352,0.00012102,2]
[324795139,1714335094570,-78.5729666,0.00012102,2]
[324795140,1714335095095,-143.1493854,0.00012102,2]
[324795141,1714335095105,-1889.0506146,0.00012102,2]
[324795142,1714335095117,-321.1292144,0.00012102,2]
[324795143,1714335095127,-1657.77599906,0.00012102,2]
[324795144,1714335095139,-552.40382994,0.00012102,2]
[324795145,1714335095149,-2530.53894586,0.00012102,2]
[324795146,1714335095158,-370.0,0.00012197,2]
[324795147,1714335095168,-4641.66724063,0.00012257,2]
[324795148,1714335095177,-2291.0,0.00012288,2]
[324795149,1714335095187,-37726.0,0.00012288,2]
[324795150,1714335095197,-5897.0,0.00012288,2]
[324795151,1714335095207,-5734.0,0.00012288,2]
[324795152,1714335095216,-1056.0,0.00012288,2]
[324795153,1714335095226,-500.0,0.00012327,2]
[324795154,1714335095236,-1163.14,0.00012327,2]
[324795155,1714335095246,-500.0,0.00012328,2]
[324795156,1714335095255,-500.0,0.00012328,2]
[324795157,1714335095265,-500.0,0.00012328,2]
[324795158,1714335095274,-500.0,0.00012328,2]
[324795159,1714335095283,-500.0,0.00012328,2]
[324795160,1714335095292,-500.0,0.00012328,2]
[324795161,1714335095301,-500.0,0.00012328,2]
[324795162,1714335095310,-266.91,0.00012328,2]
[324795163,1714335095320,-500.0,0.00012328,2]
[324795164,1714335095329,-500.0,0.00012328,2]
[324795165,1714335095338,-500.0,0.00012328,2]
[324795166,1714335095347,-500.0,0.00012328,2]
[324795167,1714335095357,-500.0,0.00012328,2]
[324795168,1714335095366,-431.64,0.00012328,2]
[324795169,1714335095375,-500.0,0.00012328,2]
[324795170,1714335095389,-500.0,0.00012328,2]
[324795171,1714335095399,-296.96,0.00012328,2]
[324795172,1714335095408,-500.0,0.00012328,2]
[324795173,1714335095418,-500.0,0.00012328,2]
[324795174,1714335095429,-500.0,0.00012328,2]
[324795175,1714335095441,-500.0,0.00012328,2]
[324795176,1714335095450,-500.0,0.00012328,2]
[324795177,1714335095460,-500.0,0.00012328,2]
[324795178,1714335095470,-93.17691475,0.00012328,2]
[324795179,1714335095485,-406.82308525,0.00012328,2]
[324795180,1714335095494,-500.0,0.00012328,2]
[324795181,1714335095503,-500.0,0.00012328,2]
[324795182,1714335095512,-500.0,0.00012328,2]
[324795183,1714335095521,-481.97,0.00012328,2]
[324795184,1714335095530,-712.87,0.00012328,2]
[324795185,1714335095540,-500.0,0.00012328,2]
[324795186,1714335095549,-500.0,0.00012328,2]
[324795187,1714335095558,-500.0,0.00012328,2]
[324795188,1714335095568,-371.92447759,0.00012328,2]
[324795189,1714335095580,-128.07552241,0.00012328,2]
[324795190,1714335095590,-528.85,0.00012328,2]
[324795191,1714335095599,-545.78,0.00012328,2]
[324795192,1714335095608,-345.93,0.00012328,2]
[324795193,1714335095617,-500.0,0.00012328,2]
[324795194,1714335095627,-500.0,0.00012328,2]
[324795195,1714335095637,-500.0,0.00012328,2]
[324795196,1714335095646,-237.3276692,0.00012328,2]
[324795197,1714335095659,-264.4956,0.00012328,2]
[324795198,1714335095670,-98.4667308,0.00012328,2]
[324795199,1714335095680,-528.41,0.00012328,2]
[324795200,1714335095689,-332.06681779,0.00012328,2]
[324795201,1714335095701,-167.93318221,0.00012328,2]
[324795202,1714335095711,-500.0,0.00012328,2]
[324795203,1714335095720,-521.76,0.00012328,2]
[324795204,1714335095729,-500.0,0.00012328,2]
[324795205,1714335095739,-73.67790361,0.00012328,2]
[324795206,1714335095751,-426.32209639,0.00012328,2]
[324795207,1714335095760,-547.50285144,0.00012328,2]
[324795208,1714335095772,-5.33714856,0.00012328,2]
[324795209,1714335095782,-500.0,0.00012328,2]
[324795210,1714335095792,-18.82285144,0.00012328,2]
[324795211,1714335095803,-481.17714856,0.00012328,2]
[324795212,1714335095813,-482.55463468,0.00012328,2]
[324795213,1714335095824,-17.44536532,0.00012328,2]
[324795214,1714335095834,-553.62,0.00012328,2]
[324795215,1714335095843,-65.97463468,0.00012328,2]
[324795216,1714335095855,-434.02536532,0.00012328,2]
[324795217,1714335095864,-500.0,0.00012328,2]
[324795218,1714335095874,-325.67463468,0.00012328,2]
[324795219,1714335095886,-233.16536532,0.00012328,2]
[324795220,1714335095896,-718.95,0.00012328,2]
[324795221,1714335095906,-500.0,0.00012328,2]
[324795222,1714335095928,-283.80463468,0.00012328,2]
[324795223,1714335095940,-264.56536532,0.00012328,2]
[324795224,1714335095950,-522.08,0.00012328,2]
[324795225,1714335095959,-500.0,0.00012328,2]
[324795226,1714335095968,-489.07880061,0.00012328,2]
[324795227,1714335095980,-10.92119939,0.00012328,2]
[324795228,1714335095989,-500.0,0.00012328,2]
[324795229,1714335095998,-500.0,0.00012328,2]
[324795230,1714335096007,-500.0,0.00012328,2]
[324795231,1714335096016,-569.87,0.00012328,2]
[324795232,1714335096024,-535.18,0.00012328,2]
[324795233,1714335096032,-604.05,0.00012328,2]
[324795234,1714335096041,-500.0,0.00012328,2]
[324795235,1714335096050,-500.0,0.00012328,2]
[324795236,1714335096059,-429.97880061,0.00012328,2]
[324795237,1714335096102,-229.71119939,0.00012328,2]
[324795238,1714335096113,-500.0,0.00012328,2]
[324795239,1714335096123,-500.0,0.00012328,2]
[324795240,1714335096133,-537.27,0.00012328,2]
[324795241,1714335096142,-96.73321684,0.00012328,2]
[324795242,1714335096154,-403.26678316,0.00012328,2]
[324795243,1714335096172,-522.34,0.00012328,2]
[324795244,1714335096184,-500.0,0.00012328,2]
[324795245,1714335096194,-543.61,0.00012328,2]
[324795246,1714335096203,-507.29,0.00012328,2]
[324795247,1714335096213,-500.0,0.00012328,2]
[324795248,1714335096222,-1120.45,0.00012328,2]
[324795249,1714335096232,-500.0,0.00012328,2]
[324795250,1714335096241,-1025.95,0.00012328,2]
[324795251,1714335096251,-500.0,0.00012328,2]
[324795252,1714335096260,-500.0,0.00012328,2]
[324795253,1714335096269,-500.0,0.00012328,2]
[324795254,1714335096279,-500.0,0.00012328,2]
[324795255,1714335096288,-500.0,0.00012328,2]
[324795256,1714335096298,-500.0,0.00012328,2]
[324795257,1714335096308,-500.0,0.00012328,2]
[324795258,1714335096318,-500.0,0.00012328,2]
[324795259,1714335096328,-53.19534824,0.00012328,2]
[324795260,1714335096342,-446.80465176,0.00012328,2]
[324795261,1714335096352,-82.7494823,0.00012328,2]
[324795262,1714335096364,-417.2505177,0.00012328,2]
[324795263,1714335096373,-170.9586903,0.00012328,2]
[324795264,1714335096389,-329.0413097,0.00012328,2]
[324795265,1714335096399,-500.0,0.00012328,2]
[324795266,1714335096408,-512.12783245,0.00012328,2]
[324795267,1714335096418,-500.0,0.00012328,2]
[324795268,1714335096429,-500.0,0.00012328,2]
[324795269,1714335096438,-508.08,0.00012328,2]
[324795270,1714335096448,-277.75085785,0.00012328,2]
[324795271,1714335096461,-222.24914215,0.00012328,2]
[324795272,1714335096472,-407.39325899,0.00012328,2]
[324795273,1714335096485,-92.60674101,0.00012328,2]
[324795274,1714335096494,-552.12,0.00012328,2]
[324795275,1714335096505,-567.05,0.00012328,2]
[324795276,1714335096514,-615.27,0.00012328,2]
[324795277,1714335096524,-500.0,0.00012328,2]
[324795278,1714335096534,-500.0,0.00012328,2]
[324795279,1714335096544,-500.0,0.00012328,2]
[324795280,1714335096558,-500.0,0.00012328,2]
[324795281,1714335096568,-500.0,0.00012328,2]
[324795282,1714335096578,-591.93,0.00012328,2]
[324795283,1714335096588,-500.0,0.00012328,2]
[324795284,1714335096598,-651.59,0.00012328,2]
[324795285,1714335096608,-500.0,0.00012328,2]
[324795286,1714335096617,-643.83,0.00012328,2]
[324795287,1714335096627,-1022.25,0.00012328,2]
[324795288,1714335096638,-926.43,0.00012328,2]
[324795289,1714335096648,-500.0,0.00012328,2]
[324795290,1714335096658,-571.35,0.00012328,2]
[324795291,1714335096669,-884.7,0.00012328,2]
[324795292,1714335096680,-500.0,0.00012328,2]
[324795293,1714335096690,-500.0,0.00012328,2]
[324795294,1714335096702,-500.0,0.00012328,2]
[324795295,1714335096712,-562.5,0.00012328,2]
[324795296,1714335096722,-1276.87,0.00012328,2]
[324795297,1714335096732,-547.13,0.00012328,2]
[324795298,1714335096742,-500.0,0.00012328,2]
[324795299,1714335096752,-558.96,0.00012328,2]
[324795300,1714335096763,-518.76,0.00012328,2]
[324795301,1714335096775,-1269.32,0.00012328,2]
[324795302,1714335096785,-456.38088685,0.00012328,2]
[324795303,1714335096795,-500.0,0.00012328,2]
[324795304,1714335096805,-577.52,0.00012328,2]
[324795305,1714335096816,-500.0,0.00012328,2]
[324795306,1714335096826,-500.0,0.00012328,2]
[324795307,1714335096836,-500.0,0.00012328,2]
[324795308,1714335096846,-562.5,0.00012328,2]
[324795309,1714335096856,-500.0,0.00012328,2]
[324795310,1714335096865,-500.0,0.00012328,2]
[324795311,1714335096875,-989.07,0.00012328,2]
[324795312,1714335096886,-771.63,0.00012328,2]
[324795313,1714335096896,-500.0,0.00012328,2]
[324795314,1714335096906,-580.16,0.00012328,2]
[324795315,1714335096916,-500.0,0.00012328,2]
[324795316,1714335096927,-500.0,0.00012328,2]
[324795317,1714335096937,-500.0,0.00012328,2]
[324795318,1714335096946,-500.0,0.00012328,2]
[324795319,1714335096956,-500.0,0.00012328,2]
[324795320,1714335096966,-592.44,0.00012328,2]
[324795321,1714335096977,-948.26,0.00012328,2]
[324795322,1714335096987,-500.0,0.00012328,2]
[324795323,1714335096996,-500.0,0.00012328,2]
[324795324,1714335097006,-500.0,0.00012328,2]
[324795325,1714335097016,-500.0,0.00012328,2]
[324795326,1714335097026,-500.0,0.00012328,2]
[324795327,1714335097036,-676.95,0.00012328,2]
[324795328,1714335097045,-500.0,0.00012328,2]
[324795329,1714335097055,-500.0,0.00012328,2]
[324795330,1714335097064,-500.0,0.00012328,2]
[324795331,1714335097074,-500.0,0.00012328,2]
[324795332,1714335097084,-500.0,0.00012328,2]
[324795333,1714335097093,-500.0,0.00012328,2]
[324795334,1714335097103,-500.0,0.00012328,2]
[324795335,1714335097112,-151.0,0.00012328,2]
[324795336,1714335097122,-1354.65,0.00012328,2]
[324795337,1714335097132,-500.0,0.00012328,2]
[324795338,1714335097142,-931.21,0.00012328,2]
[324795339,1714335097151,-1483.98,0.00012328,2]
[324795340,1714335097160,-185.495544,0.00012328,2]
[324795341,1714335097170,-500.0,0.00012328,2]
[324795342,1714335097180,-500.0,0.00012328,2]
[324795343,1714335097191,-500.0,0.00012328,2]
[324795344,1714335097201,-550.84,0.00012328,2]
[324795345,1714335097210,-303.315159,0.00012328,2]
[324795346,1714335097221,-521.169563,0.00012328,2]
[324795347,1714335097230,-718.86,0.00012328,2]
[324795348,1714335097240,-500.0,0.00012328,2]
[324795349,1714335097249,-1102.68,0.00012328,2]
[324795350,1714335097261,-303.315159,0.00012328,2]
[324795351,1714335097272,-521.169563,0.00012328,2]
[324795352,1714335097283,-500.0,0.00012328,2]
[324795353,1714335097293,-500.0,0.00012328,2]
[324795354,1714335097303,-500.0,0.00012328,2]
[324795355,1714335097314,-1722.960204,0.00012328,2]
[324795356,1714335097323,-500.0,0.00012328,2]
[324795357,1714335097333,-1722.960204,0.00012328,2]
[324795358,1714335097343,-324.041959,0.00012328,2]
[324795359,1714335097352,-500.0,0.00012328,2]
[324795360,1714335097363,-1191.62,0.00012328,2]
[324795361,1714335097374,-500.0,0.00012328,2]
[324795362,1714335097386,-362.83,0.00012328,2]
[324795363,1714335097397,-324.041959,0.00012328,2]
[324795364,1714335097406,-941.05,0.00012328,2]
[324795365,1714335097416,-500.0,0.00012328,2]
[324795366,1714335097427,-500.0,0.00012328,2]
[324795367,1714335097436,-276.12,0.00012328,2]
[324795368,1714335097446,-500.0,0.00012328,2]
[324795369,1714335097455,-500.0,0.00012328,2]
[324795370,1714335097466,-410.82,0.00012328,2]
[324795371,1714335097476,-500.0,0.00012328,2]
[324795372,1714335097486,-500.0,0.00012328,2]
[324795373,1714335097495,-500.0,0.00012328,2]
[324795374,1714335097505,-1004.38,0.00012328,2]
[324795375,1714335097514,-500.0,0.00012328,2]
[324795376,1714335097524,-151.0,0.00012328,2]
[324795377,1714335097533,-500.0,0.00012328,2]
[324795378,1714335097543,-500.0,0.00012328,2]
[324795379,1714335097552,-500.0,0.00012328,2]
[324795380,1714335097562,-962.75,0.00012328,2]
[324795381,1714335097571,-520.83,0.00012328,2]
[324795382,1714335097582,-737.17,0.00012328,2]
[324795383,1714335097592,-500.0,0.00012328,2]
[324795384,1714335097602,-500.0,0.00012328,2]
[324795385,1714335097611,-3080.143203,0.00012328,2]
[324795386,1714335097621,-500.0,0.00012328,2]
[324795387,1714335097630,-500.0,0.00012328,2]
[324795388,1714335097640,-500.0,0.00012328,2]
[324795389,1714335097650,-500.0,0.00012328,2]
[324795390,1714335097659,-704.1,0.00012328,2]
[324795391,1714335097669,-272.24158918,0.00012328,2]
[324795392,1714335097678,-3080.143203,0.00012328,2]
[324795393,1714335097687,-697.52,0.00012328,2]
[324795394,1714335097697,-500.0,0.00012328,2]
[324795395,1714335097706,-500.0,0.00012328,2]
[324795396,1714335097716,-500.0,0.00012328,2]
[324795397,1714335097726,-892.91,0.00012328,2]
[324795398,1714335097737,-500.0,0.00012328,2]
[324795399,1714335097747,-500.0,0.00012328,2]
[324795400,1714335097757,-543.87,0.00012328,2]
[324795401,1714335097767,-500.0,0.00012328,2]
[324795402,1714335097776,-1931.86,0.00012328,2]
[324795403,1714335097786,-521.74359913,0.00012328,2]
[324795404,1714335097795,-2005.27,0.00012328,2]
[324795405,1714335097805,-500.0,0.00012328,2]
[324795406,1714335097814,-500.0,0.00012328,2]
[324795407,1714335097825,-620.0,0.00012328,2]
[324795408,1714335097834,-500.0,0.00012328,2]
[324795409,1714335097844,-610.6438203,0.00012328,2]
[324795410,1714335097855,-587.66,0.00012328,2]
[324795411,1714335097864,-500.0,0.00012328,2]
[324795412,1714335097874,-562.5,0.00012328,2]
[324795413,1714335097885,-520.83,0.00012328,2]
[324795414,1714335097896,-500.0,0.00012328,2]
[324795415,1714335097907,-151.0,0.00012328,2]
[324795416,1714335097917,-500.0,0.00012328,2]
[324795417,1714335097927,-506.41,0.00012328,2]
[324795418,1714335097936,-500.0,0.00012328,2]
[324795419,1714335097946,-1002.82,0.00012328,2]
[324795420,1714335097956,-500.0,0.00012328,2]
[324795421,1714335097966,-151.0,0.00012328,2]
[324795422,1714335097981,-500.0,0.00012328,2]
[324795423,1714335097990,-539.53186222,0.00012328,2]
[324795424,1714335098000,-290.756738,0.00012328,2]
[324795425,1714335098010,-500.0,0.00012328,2]
[324795426,1714335098019,-290.756738,0.00012328,2]
[324795427,1714335098029,-607.23,0.00012328,2]
[324795428,1714335098039,-500.0,0.00012328,2]
[324795429,1714335098048,-500.0,0.00012328,2]
[324795430,1714335098058,-665.39,0.00012328,2]
[324795431,1714335098067,-500.0,0.00012328,2]
[324795432,1714335098077,-500.0,0.00012328,2]
[324795433,1714335098087,-500.0,0.00012328,2]
[324795434,1714335098100,-500.0,0.00012328,2]
[324795435,1714335098110,-500.0,0.00012328,2]
[324795436,1714335098120,-488.20307278,0.00012328,2]
[324795437,1714335098130,-708.13,0.00012328,2]
[324795438,1714335098140,-1615.1,0.00012328,2]
[324795439,1714335098151,-500.0,0.00012328,2]
[324795440,1714335098160,-217.372388,0.00012328,2]
[324795441,1714335098173,-504.6,0.00012328,2]
[324795442,1714335098184,-500.0,0.00012328,2]
[324795443,1714335098194,-1130.11,0.00012328,2]
[324795444,1714335098206,-582.99,0.00012328,2]